fUST/lending_fUST_20240406
["ID","MTS","AMOUNT","RATE_DAILY","PERIOD"]
[321681618,1712383668323,-297.00332811,0.00028769,2]
[321681619,1712383668358,-962.11,0.00028769,2]
[321681620,1712383668390,-1004.88,0.00028769,2]
[321681621,1712383668425,-500.0,0.00028769,2]
[321681622,1712383668460,-1080.08,0.00028769,2]
[321681623,1712383668492,-500.0,0.00028769,2]
[321681624,1712383668522,-500.0,0.00028769,2]
[321681625,1712383668552,-302.8246327,0.00028769,2]
[321681626,1712383668581,-1000.0,0.00028769,2]
[321681627,1712383668609,-4464.46,0.00028769,2]
[321681628,1712383668637,-500.0,0.00028769,2]
[321681629,1712383668665,-298.67670163,0.00028769,2]
[321681630,1712383668694,-500.0,0.00028769,2]
[321681631,1712383668723,-500.0,0.00028769,2]
[321681632,1712383668752,-4453.6,0.00028769,2]
[321681633,1712383668781,-1499.94759071,0.00028769,2]
[321681634,1712383672792,-1035.08,0.00028768,2]
[321681635,1712383672830,-3106.82240929,0.00028769,2]
[321681636,1712383672862,-500.0,0.00028769,2]
[321681637,1712383672900,-500.0,0.00028769,2]
[321681638,1712383672933,-1197.02,0.00028769,2]
[321681639,1712383672966,-172.0236292,0.00028769,2]
[321681640,1712383672999,-512.20122065,0.00028769,2]
[321681641,1712383673028,-159.91288392,0.00028769,2]
[321681642,1712383673063,-500.0,0.00028769,2]
[321681643,1712383673092,-221.8254735,0.00028769,2]
[321681644,1712383673121,-500.0,0.00028769,2]
[321681645,1712383673151,-555.5,0.00028769,2]
[321681646,1712383673179,-500.0,0.00028769,2]
[321681647,1712383673212,-1417.68,0.00028769,2]
[321681648,1712383673239,-348.04676893,0.00028769,2]
[321681649,1712383673268,-500.0,0.00028769,2]
[321681650,1712383673299,-18273.88761451,0.00028769,2]
[321681651,1712383691963,-500.0,0.00028768,2]
[321681652,1712383691992,-500.0,0.00028768,2]
[321681653,1712383692019,-300.0,0.00028768,2]
[321681654,1712383692047,-16363.86718486,0.00028768,2]
[321681655,1712383692074,-500.0,0.00028768,2]
[321681656,1712383692102,-11836.13281514,0.00028769,2]
[321681657,1712383707602,-645.37364718,0.00028768,2]
[321681658,1712383707633,-500.0,0.00028768,2]
[321681659,1712383707664,-1206.26957035,0.00028769,2]
[321681660,1712383707691,-500.0,0.00028769,2]
[321681661,1712383707721,-500.0,0.00028769,2]
[321681662,1712383707886,-2799.21,0.00028769,2]
[321681663,1712383707915,-500.0,0.00028769,2]
[321681664,1712383707944,-500.0,0.00028769,2]
[321681665,1712383707972,-500.0,0.00028769,2]
[321681666,1712383708000,-6958.36,0.00028769,2]
[321681667,1712383708028,-500.0,0.00028769,2]
[321681668,1712383708055,-500.0,0.00028769,2]
[321681669,1712383708082,-2273.37,0.00028769,2]
[321681670,1712383708108,-500.0,0.00028769,2]
[321681671,1712383708135,-500.0,0.00028769,2]
[321681672,1712383708162,-500.0,0.00028769,2]
[321681673,1712383708189,-517.52,0.00028769,2]
[321681674,1712383708216,-7525.39,0.00028769,2]
[321681675,1712383708244,-853.12,0.00028769,2]
[321681676,1712383708271,-156.54180735,0.00028769,2]
[321681677,1712383708298,-521.55125372,0.00028769,2]
[321681678,1712383708325,-1043.2937214,0.00028769,2]
[321681679,1712383721718,244.18067602,0.00021575,2]
[321681685,1712383741722,-769.62981664,0.00028669,4]
[321681686,1712383741751,-924.16540246,0.00028767,2]
[321681687,1712383741782,-181.92453786,0.00028767,2]
[321681688,1712383741810,-300.0,0.00028767,2]
[321681689,1712383741838,-542.94049469,0.00028767,2]
[321681690,1712383742078,-1121.45912805,0.00028767,2]
[321681691,1712383742109,-500.0,0.00028768,2]
[321681692,1712383742138,-4414.83,0.00028768,2]
[321681693,1712383742168,-1985.79,0.00028768,2]
[321681694,1712383742196,-3320.3862786,0.00028769,2]
[321681695,1712383742223,-500.0,0.00028769,2]
[321681696,1712383742250,-500.0,0.00028769,2]
[321681697,1712383742277,-500.0,0.00028769,2]
[321681698,1712383742307,-500.0,0.00028769,2]
[321681699,1712383742334,-500.0,0.00028769,2]
[321681700,1712383742362,-500.0,0.00028769,2]
[321681701,1712383742388,-2650.01,0.00028769,2]
[321681702,1712383742416,-288.8643417,0.00028769,2]
[321681707,1712383771861,-5778.03579658,0.00027328,2]
[321681708,1712383771892,-155.0,0.00027328,2]
[321681709,1712383771923,-924.16540246,0.00027329,2]
[321681710,1712383771953,-200.0,0.00027743,2]
[321681711,1712383771982,-282.0779007,0.00028666,2]
[321681712,1712383772012,-407.36237931,0.00028667,2]
[321681713,1712383772041,-2091.60059617,0.00028667,2]
[321681714,1712383772070,-886.09150372,0.00028668,2]
[321681715,1712383772099,-2086.93001437,0.00028668,2]
[321681716,1712383772129,-300.0,0.00028767,2]
[321681717,1712383772157,-189.33123469,0.00028767,2]
[321681718,1712383772188,-500.0,0.00028768,2]
[321681719,1712383772219,-343.84115834,0.00028768,2]
[321681720,1712383772249,-5855.56401366,0.00028768,2]
[321681765,1712383832612,-1086.30756391,0.00027327,2]
[321681766,1712383832622,-771.187964,0.00027328,2]
[321681767,1712383832631,-183.38752244,0.00028667,2]
[321681768,1712383832640,-183.38752243,0.00028668,2]
[321681769,1712383832649,-183.38752243,0.00028669,2]
[321681770,1712383832659,-300.0,0.00028765,2]
[321681771,1712383832668,-300.0,0.00028765,2]
[321681772,1712383832678,-358.83767364,0.00028766,2]
[321681773,1712383832688,-2761.96791256,0.00028766,2]
[321681774,1712383832697,-891.68561182,0.00028766,2]
[321681775,1712383832706,-1302.63165291,0.00028766,2]
[321681776,1712383832715,-5778.03579658,0.00028766,2]
[321681777,1712383832724,-2091.60059617,0.00028766,2]
[321681778,1712383832733,-282.0779007,0.00028766,2]
[321681779,1712383832742,-338.38454419,0.00028766,2]
[321681780,1712383832751,-247.87712493,0.00028766,2]
[321681781,1712383832761,-1131.10155601,0.00028767,2]
[321681782,1712383832770,-537.45185021,0.00028767,2]
[321681783,1712383832779,-322.89169328,0.00028767,2]
[321681784,1712383832788,-867.75316092,0.00028767,2]
[321681785,1712383832798,-5574.0,0.00028767,2]
[321681786,1712383832807,-156.15052858,0.00028767,2]
[321681787,1712383832817,-24155.87598634,0.00028768,2]
[321681788,1712383832826,-270.35452789,0.00028768,2]
[321681789,1712383832836,-6668.42,0.00028768,2]
[321681790,1712383832846,-500.0,0.00028768,2]
[321681791,1712383832855,-1213.64,0.00028768,2]
[321681792,1712383832865,-500.0,0.00028768,2]
[321681793,1712383832875,-500.0,0.00028768,2]
[321681794,1712383832886,-2178.65,0.00028768,2]
[321681795,1712383832896,-2302.77,0.00028768,2]
[321681796,1712383832905,-1084.89016253,0.00028768,2]
[321681802,1712383838287,-2440.07686414,0.00028768,2]
[321681833,1712383848146,-1302.63165291,0.00028737,2]
[321681835,1712383848156,-1131.10155601,0.00028766,2]
[321681836,1712383848165,-184.19361034,0.00028766,2]
[321681837,1712383848174,-2761.96791256,0.00028766,2]
[321681838,1712383848183,-1086.30756391,0.00028766,2]
[321681839,1712383848193,-472.86433068,0.00028767,2]
[321681841,1712383848202,-3686.87297333,0.00028768,2]
[321681842,1712383848211,-200.0,0.00028768,2]
[321681843,1712383848220,-2088.43,0.00028768,2]
[321681844,1712383848229,-5647.6056583,0.00028769,2]
[321681845,1712383848238,-251.56484627,0.00028769,2]
[321681846,1712383848247,-500.0,0.00028769,2]
[321681847,1712383848257,-963.01,0.00028769,2]
[321681848,1712383848266,-500.0,0.00028769,2]
[321681849,1712383848275,-151.0,0.00028769,2]
[321681850,1712383848284,-151.0,0.00028769,2]
[321681851,1712383848293,-500.0,0.00028769,2]
[321681852,1712383848302,-500.0,0.00028769,2]
[321681853,1712383848311,-7467.34,0.00028769,2]
[321681854,1712383848320,-500.0,0.00028769,2]
[321681855,1712383848329,-500.0,0.00028769,2]
[321681856,1712383848338,-4268.03,0.00028769,2]
[321681857,1712383848348,-158.34331194,0.00028769,2]
[321681858,1712383848357,-500.0,0.00028769,2]
[321681859,1712383848366,-1795.63,0.00028769,2]
[321681860,1712383848375,-1745.67,0.00028769,2]
[321681861,1712383848384,-500.0,0.00028769,2]
[321681862,1712383848394,-500.0,0.00028769,2]
[321681863,1712383848403,-500.0,0.00028769,2]
[321681864,1712383848412,-503.89570948,0.00028769,2]
[321681865,1712383848421,-500.0,0.00028769,2]
[321681866,1712383848430,-500.0,0.00028769,2]
[321681867,1712383848439,-22165.79,0.00028769,2]
[321681868,1712383848449,-416.42607874,0.00028769,2]
[321681869,1712383848458,-500.0,0.00028769,2]
[321681870,1712383848467,-2764.1813925,0.00028769,2]
[321681871,1712383848475,-500.0,0.00028769,2]
[321681872,1712383848485,-500.0,0.00028769,2]
[321681873,1712383848494,-500.0,0.00028769,2]
[321681874,1712383848503,-500.0,0.00028769,2]
[321681875,1712383848513,-500.0,0.00028769,2]
[321681876,1712383848522,-507.7211018,0.00028769,2]
[321681877,1712383848531,-500.0,0.00028769,2]
[321681878,1712383848540,-500.0,0.00028769,2]
[321681879,1712383848549,-500.0,0.00028769,2]
[321681880,1712383848558,-500.0,0.00028769,2]
[321681881,1712383848567,-500.0,0.00028769,2]
[321681882,1712383848576,-36733.87734469,0.0002877,2]
[321681883,1712383848585,-930.392395,0.0002877,2]
[321681884,1712383848594,-930.392395,0.0002877,2]
[321681885,1712383848603,-179.2856371,0.00028875,2]
[321681886,1712383848612,-438.13476559,0.00029,2]
[321681887,1712383848620,-1067.86,0.00029042,2]
[321681888,1712383848629,-507.45,0.00029042,2]
[321681889,1712383848638,-616.08,0.00029042,2]
[321681890,1712383848647,-6683.07,0.00029042,2]
[321681891,1712383848656,-500.0,0.00029042,2]
[321681892,1712383848665,-1035.08,0.00029042,2]
[321681893,1712383848674,-500.0,0.00029042,2]
[321681894,1712383848683,-500.0,0.00029042,2]
[321681895,1712383848692,-500.0,0.00029042,2]
[321681896,1712383848701,-500.0,0.00029042,2]
[321681897,1712383848710,-500.0,0.00029042,2]
[321681898,1712383848719,-4414.83,0.00029042,2]
[321681899,1712383848728,-1985.79,0.00029042,2]
[321681900,1712383848737,-258.513573,0.00029042,2]
[321681901,1712383848746,-30011.44,0.00029042,2]
[321681902,1712383848755,-6668.42,0.00029042,2]
[321681903,1712383848764,-500.0,0.00029042,2]
[321681904,1712383848773,-1213.64,0.00029042,2]
[321681905,1712383848782,-500.0,0.00029042,2]
[321681906,1712383848791,-168.54403258,0.00029042,2]
[321681907,1712383848800,-2178.65,0.00029042,2]
[321681908,1712383848809,-2302.77,0.00029042,2]
[321681909,1712383848818,-7211.84,0.00029042,2]
[321681910,1712383848828,-151.0,0.00029042,2]
[321681911,1712383848838,-151.0,0.00029042,2]
[321681912,1712383848848,-2088.43,0.00029042,2]
[321681913,1712383848950,-543.2206279,0.00029043,2]
[321681914,1712383848960,-500.0,0.00029043,2]
[321681915,1712383848970,-158.768939,0.00029043,2]
[321681916,1712383848979,-500.0,0.00029043,2]
[321681917,1712383848988,-500.0,0.00029043,2]
[321681918,1712383848997,-292.96220653,0.00029043,2]
[321681923,1712383966655,1241.96313923,0.00026942,2]
[321681925,1712384051900,200.0,0.00026942,2]
[321681926,1712384069894,200.0,0.00026942,2]
[321681927,1712384088016,200.0,0.00026942,2]
[321681928,1712384107899,200.0,0.00026942,2]
[321681929,1712384117677,228.372006,0.00030137,120]
[321681930,1712384123899,200.0,0.00026942,2]
[321681932,1712384143905,200.0,0.00026942,2]
[321681934,1712384165909,200.0,0.00026942,2]
[321681935,1712384183928,200.0,0.00026942,2]
[321681936,1712384200097,200.0,0.00026942,2]
[321681939,1712384219918,200.0,0.00026942,2]
[321681940,1712384221959,172.251362,0.00026909,2]
[321681941,1712384235907,200.0,0.00026942,2]
[321681942,1712384253909,200.0,0.00026942,2]
[321681943,1712384268039,1022.67370378,0.00026942,2]
[321681944,1712384273910,200.0,0.00026942,2]
[321681993,1712384569210,866.69055852,0.00026942,2]
[321682001,1712384600936,171.279004,0.00030137,120]
[321682006,1712384652605,1066.7689571,0.00026924,2]
[321682010,1712384740153,420.75030384,0.00026798,2]
[321682011,1712384802223,-286.843734,0.00027043,2]
[321682012,1712384802249,-694.0647626,0.00027044,3]
[321682013,1712384815132,191.229156,0.00027,2]
[321682014,1712384835120,159.35763,0.00027,2]
[321682016,1712384853138,155.0,0.00027,2]
[321682017,1712384870554,245.5047174,0.00024944,2]
[321682018,1712384870590,332.28898828,0.00024944,2]
[321682019,1712384875281,155.0,0.00027,2]
[321682020,1712384893144,155.0,0.00027,2]
[321682021,1712384915147,155.0,0.00027,2]
[321682022,1712384926656,2342.3415791,0.00026964,2]
[321682023,1712384935217,155.0,0.00027,2]
[321682024,1712384951139,181.14578,0.00027,2]
[321682046,1712385038498,-300.0,0.0002707,2]
[321682048,1712385038508,-300.0,0.0002707,2]
[321682050,1712385038517,-4802.63783839,0.00027071,2]
[321682285,1712385040800,-13042.63349094,0.00027071,2]
[321682287,1712385040811,-1650.44722125,0.00027071,2]
[321682568,1712385043670,-267.22339052,0.00027071,2]
[321682575,1712385043725,-1411.20033299,0.00027071,2]
[321682577,1712385043740,-342.58750005,0.00027071,2]
[321682583,1712385043784,-3179.80308235,0.00027071,2]
[321685942,1712385171968,730.82312,0.00024971,2]
[321685943,1712385182063,342.740101,0.00030137,120]
[321685947,1712385473399,487.21541333,0.00024971,2]
[321685961,1712385660224,257.055075,0.00030137,120]
[321686525,1712385722990,151.0,0.000201,2]
[321688591,1712385774783,324.81027556,0.00024971,2]
[321688633,1712386005152,-218.8896491,0.00027496,2]
[321688634,1712386026738,151.0,0.000201,2]
[321688635,1712386057011,2178.364891,0.00025886,2]
[321688636,1712386068536,249.20426127,0.00025,2]
[321688637,1712386072579,1362.44675475,0.00025887,2]
[321688638,1712386229612,241.364804,0.00030137,120]
[321689232,1712386243641,6393.08517013,0.00032192,60]
[321689593,1712386253001,225.57,0.00032192,60]
[321689609,1712386330395,190.29,0.00032192,60]
[321689610,1712386431771,3087.85627332,0.0002,2]
[321689611,1712386457790,2563.24271846,0.000125,2]
[321689619,1712386766770,1388.9168309,0.00026931,2]
[321689620,1712386811306,674.55035419,0.00027,2]
[321689621,1712386839456,429.667802,0.00026916,2]
[321689623,1712386914613,273.28126,0.00030137,120]
[321689658,1712387281083,620.69404198,0.000249,2]
[321689659,1712387340161,190.28857601,0.00032,60]
[321689660,1712387344427,214.833901,0.00026998,2]
[321689720,1712387432702,-232.95017337,0.00027029,2]
[321689721,1712387432712,-210.99211525,0.0002703,2]
[321689722,1712387432722,-741.13846022,0.0002703,2]
[321689762,1712387437965,-1053.80850463,0.0002703,2]
[321690244,1712387490247,154.98450155,0.00027028,2]
[321690245,1712387491223,204.960945,0.00030137,120]
[321690246,1712387500092,2577.89649192,0.00027028,2]
[321690247,1712387505252,210.99211525,0.00027028,2]
[321690248,1712387505391,1028.20444437,0.00027028,2]
[321690249,1712387514835,232.95017337,0.00027028,2]
[321690250,1712387583819,413.79602799,0.0002493,2]
[321690251,1712387617340,151.0,0.000273,23]
[321690252,1712387649144,1939.5398811,0.00026842,2]
[321690253,1712387744915,16815.8046286,0.00026877,2]
[321690254,1712387785106,1000.0,0.00032,60]
[321690255,1712387885209,420.26948365,0.0002493,2]
[321690256,1712387885732,214.833901,0.00026807,2]
[321690257,1712387933547,1746.8972013,0.0002695,2]
[321690258,1712388003436,341.2024969,0.00026771,2]
[321690259,1712388057384,1192.2646521,0.00026917,2]
[321690260,1712388091771,204.960945,0.00030137,120]
[321690262,1712388186591,280.17965577,0.0002493,2]
[321690263,1712388270562,393.46121121,0.00026938,2]
[321690264,1712388414106,-264.34881452,0.00027026,7]
[321690265,1712388414126,-232.95017337,0.00027026,2]
[321690266,1712388414147,-282.48776653,0.00027027,2]
[321690267,1712388414166,-430.38139166,0.00027027,2]
[321690294,1712388483235,378.098284,0.00026371,2]
[321690295,1712388488154,186.78643718,0.0002485,2]
[321690299,1712388631221,204.960945,0.00030137,120]
[321690332,1712388632092,-264.34881452,0.000272,7]
[321690333,1712388632101,-282.48776653,0.00027201,2]
[321690334,1712388632110,-151.0,0.00027205,2]
[321690335,1712388632120,-156.19216516,0.00027221,2]
[321690336,1712388632129,-3732.73797295,0.00027258,2]
[321690337,1712388632140,-300.0,0.00027259,2]
[321690338,1712388632149,-300.0,0.00027259,2]
[321690339,1712388632159,-1497.23328084,0.0002726,4]
[321690340,1712388632171,-1588.74917022,0.0002726,4]
[321690341,1712388632182,-6567.40396428,0.0002726,4]
[321690342,1712388632192,-151.0,0.000273,2]
[321690343,1712388632201,-954.024765,0.000273,2]
[321690344,1712388632212,-954.024765,0.000273,2]
[321690345,1712388632222,-1968.56557596,0.000273,2]
[321690346,1712388632231,-151.0,0.00027321,2]
[321690347,1712388632242,-151.0,0.00027321,2]
[321690348,1712388632255,-151.0,0.00027321,2]
[321690349,1712388632265,-151.0,0.00027321,2]
[321690350,1712388632273,-151.0,0.00027321,2]
[321690351,1712388632282,-954.024765,0.00027321,2]
[321690352,1712388632292,-954.024765,0.00027321,2]
[321690353,1712388632303,-151.0,0.00027321,2]
[321690354,1712388632316,-151.0,0.00027321,2]
[321690355,1712388632325,-199.028318,0.00027321,2]
[321690356,1712388632334,-151.0,0.00027321,2]
[321690357,1712388632344,-151.0,0.00027321,2]
[321690358,1712388632355,-223.05025597,0.00027321,2]
[321690359,1712388632364,-151.0,0.00027397,2]
[321690360,1712388632375,-158.102209,0.00027397,2]
[321690361,1712388632385,-151.0,0.00027397,2]
[321690362,1712388632395,-151.0,0.00027397,2]
[321690363,1712388632404,-151.0,0.00027397,2]
[321690364,1712388632413,-954.024765,0.00027397,2]
[321690365,1712388632423,-954.024765,0.00027397,2]
[321690366,1712388632432,-156.997513,0.00027397,2]
[321690367,1712388632441,-163.43351,0.00027397,2]
[321690368,1712388632451,-151.0,0.00027397,2]
[321690369,1712388632460,-151.0,0.00027397,2]
[321690370,1712388632471,-279.297463,0.00027397,2]
[321690371,1712388632481,-151.0,0.00027397,2]
[321690372,1712388632490,-151.0,0.00027397,2]
[321690373,1712388632499,-151.0,0.00027397,2]
[321690374,1712388632509,-151.0,0.00027397,2]
[321690375,1712388632519,-151.0,0.00027397,2]
[321690376,1712388632539,-151.0,0.00027397,2]
[321690377,1712388632550,-151.0,0.00027397,2]
[321690378,1712388632559,-151.0,0.00027397,2]
[321690379,1712388632569,-151.0,0.00027397,2]
[321690380,1712388632578,-792.58399699,0.00027399,3]
[321690381,1712388632588,-151.0,0.00027399,2]
[321690382,1712388632597,-954.024765,0.00027399,2]
[321690383,1712388632606,-954.024765,0.00027399,2]
[321690384,1712388632616,-151.0,0.00027399,2]
[321690385,1712388632625,-151.0,0.00027399,2]
[321690386,1712388632634,-151.0,0.00027399,2]
[321690387,1712388632644,-151.0,0.00027399,2]
[321690388,1712388632653,-151.0,0.00027399,2]
[321690389,1712388632663,-151.0,0.000274,2]
[321690390,1712388632672,-253.042578,0.000274,2]
[321690391,1712388632682,-151.0,0.000274,2]
[321690392,1712388632691,-158.368,0.000274,2]
[321690393,1712388632701,-954.024765,0.000274,2]
[321690394,1712388632710,-954.024765,0.000274,2]
[321690395,1712388632719,-954.024765,0.000274,2]
[321690396,1712388632728,-954.024765,0.000274,2]
[321690397,1712388632737,-151.0,0.000274,2]
[321690398,1712388632746,-151.0,0.000274,2]
[321690399,1712388632757,-151.0,0.000274,2]
[321690400,1712388632766,-151.0,0.000274,2]
[321690401,1712388632775,-300.125517,0.000274,2]
[321690402,1712388632784,-249.0,0.00027499,2]
[321690403,1712388632794,-151.0,0.00027499,2]
[321690404,1712388632803,-151.0,0.00027499,2]
[321690405,1712388632813,-151.0,0.00027499,2]
[321690406,1712388632823,-954.024765,0.00027499,2]
[321690407,1712388632833,-954.024765,0.00027499,2]
[321690408,1712388632845,-954.024765,0.00027499,2]
[321690409,1712388632855,-954.024765,0.00027499,2]
[321690410,1712388632866,-1820.31,0.00027499,2]
[321690411,1712388632876,-151.0,0.00027499,2]
[321690412,1712388632887,-500.0,0.00027499,2]
[321690413,1712388632897,-500.0,0.00027499,2]
[321690414,1712388632909,-3098.52205871,0.000275,2]
[321690415,1712388632921,-151.0,0.000275,2]
[321690416,1712388632931,-151.0,0.000275,2]
[321690417,1712388632940,-176.948053,0.000275,2]
[321690418,1712388632949,-153.0,0.000275,2]
[321690419,1712388632959,-954.024765,0.000275,2]
[321690420,1712388632971,-954.024765,0.000275,2]
[321690421,1712388632980,-954.024765,0.000275,2]
[321690422,1712388632990,-954.024774,0.000275,2]
[321690423,1712388632999,-153.0,0.000275,2]
[321690424,1712388633008,-153.0,0.000277,2]
[321690425,1712388633018,-1820.31,0.00027773,2]
[321690426,1712388633029,-500.0,0.00027773,2]
[321690427,1712388633039,-500.0,0.00027773,2]
[321690428,1712388633050,-306.0,0.000278,2]
[321690429,1712388633059,-202.5506203,0.000278,2]
[321690430,1712388633069,-153.0,0.00027945,2]
[321690431,1712388633079,-506.24664178,0.00028,2]
[321690432,1712388633089,-151.0,0.0002803,2]
[321690433,1712388633098,-1820.31,0.00028047,2]
[321690434,1712388633108,-500.0,0.00028047,2]
[321690435,1712388633118,-500.0,0.00028047,2]
[321690436,1712388633128,-1112.51,0.00028099,2]
[321690437,1712388633138,-2110.87,0.00028099,2]
[321690438,1712388633147,-1914.4,0.00028099,2]
[321690439,1712388633157,-500.0,0.00028099,2]
[321690440,1712388633167,-564.74,0.00028099,2]
[321690441,1712388633178,-500.0,0.00028099,2]
[321690442,1712388633188,-500.0,0.00028099,2]
[321690443,1712388633197,-500.0,0.00028099,2]
[321690444,1712388633208,-210.0916525,0.00028099,2]
[321690445,1712388633217,-500.0,0.00028099,2]
[321690446,1712388633227,-151.0,0.000281,2]
[321690447,1712388633344,-1820.31,0.00028321,2]
[321690448,1712388633355,-500.0,0.00028321,2]
[321690449,1712388633365,-500.0,0.00028321,2]
[321690450,1712388633376,-978.87,0.0002833,2]
[321690451,1712388633385,-6126.15,0.0002833,2]
[321690452,1712388633395,-948.82,0.0002833,2]
[321690453,1712388633405,-500.0,0.0002833,2]
[321690454,1712388633415,-4046.92,0.0002833,2]
[321690455,1712388633425,-27510.49,0.0002833,2]
[321690456,1712388633434,-6112.72,0.0002833,2]
[321690457,1712388633445,-1997.09,0.0002833,2]
[321690458,1712388633454,-151.0,0.00028331,2]
[321690459,1712388633464,-622.72751771,0.0002835,2]
[321690460,1712388633473,-175.876622,0.0002835,2]
[321690461,1712388633484,-1112.51,0.00028373,2]
[321690462,1712388633493,-2110.87,0.00028373,2]
[321690463,1712388633503,-1914.4,0.00028373,2]
[321690464,1712388633513,-500.0,0.00028373,2]
[321690465,1712388633523,-564.74,0.00028373,2]
[321690466,1712388633533,-500.0,0.00028373,2]
[321690467,1712388633542,-187.89764627,0.00028373,2]
[321690468,1712388633552,-500.0,0.00028373,2]
[321690469,1712388633562,-500.0,0.00028373,2]
[321690470,1712388633571,-1820.31,0.00028595,2]
[321690471,1712388633583,-500.0,0.00028595,2]
[321690472,1712388633593,-500.0,0.00028595,2]
[321690473,1712388633603,-978.87,0.00028604,2]
[321690474,1712388633612,-4374.96265336,0.00028604,2]
[321690509,1712388638085,-544.8575334,0.00027221,2]
[321690511,1712388638094,-151.0,0.00027321,2]
[321690513,1712388638104,-151.0,0.00027321,2]
[321690515,1712388638113,-151.0,0.00027397,2]
[321690518,1712388638125,-151.0,0.00027397,2]
[321690520,1712388638139,-151.0,0.00027399,2]
[321690523,1712388638153,-151.0,0.00027399,2]
[321690525,1712388638167,-198.503684,0.00027399,2]
[321690527,1712388638179,-151.0,0.000274,2]
[321690530,1712388638190,-110.04700346,0.000274,2]
[321690532,1712388638206,-40.95299654,0.000274,2]
[321690535,1712388638219,-151.0,0.000274,2]
[321690537,1712388638232,-544.8575334,0.00027473,2]
[321690540,1712388638246,-151.0,0.00027499,2]
[321690542,1712388638259,-280.7995703,0.00028329,2]
[321690544,1712388638273,-1751.18734664,0.00028604,2]
[321690547,1712388638283,-948.82,0.00028604,2]
[321690548,1712388638295,-500.0,0.00028604,2]
[321690549,1712388638309,-4046.92,0.00028604,2]
[321690550,1712388638324,-26245.53007261,0.00028604,2]
[321690551,1712388638340,-1264.95992739,0.00028604,2]
[321690552,1712388638351,-5999.50644283,0.00028604,2]
[321690714,1712388640372,-544.8575334,0.00027726,2]
[321690716,1712388640387,-113.21355717,0.00028604,2]
[321690719,1712388640401,-1997.09,0.00028604,2]
[321690721,1712388640413,-1112.51,0.00028647,2]
[321690724,1712388640426,-2110.87,0.00028647,2]
[321690727,1712388640436,-996.63552223,0.00028647,2]
[321690896,1712388643203,-544.8575334,0.00027978,2]
[321690897,1712388643215,-544.8575334,0.0002823,2]
[321690898,1712388643227,-917.76447777,0.00028647,2]
[321690899,1712388643238,-500.0,0.00028647,2]
[321690900,1712388643249,-564.74,0.00028647,2]
[321690901,1712388643260,-500.0,0.00028647,2]
[321690903,1712388643271,-500.0,0.00028647,2]
[321690905,1712388643282,-500.0,0.00028647,2]
[321690907,1712388643293,-253.65635125,0.00028659,2]
[321690909,1712388643304,-2101.01232228,0.0002866,2]
[321691216,1712388646146,-154.98450155,0.00027172,2]
[321691218,1712388646156,-160.22866444,0.00027499,2]
[321691510,1712388771993,255.84077227,0.00026288,2]
[321691511,1712388772031,7234.88568563,0.00026288,2]
[321691512,1712388789502,150.0,0.00026504,2]
[321691513,1712388791668,154.9690062,0.00026122,2]
[321691514,1712388809681,154.9690062,0.00026122,2]
[321691515,1712388827682,154.9690062,0.00026122,2]
[321691516,1712388845685,154.9690062,0.00026122,2]
[321691517,1712388846096,158.09112937,0.00026,4]
[321691518,1712388863700,241.25730639,0.00026122,2]